[Event "Late-Titled-Tuesday-Blitz-March-05-2024"]
[Site "Chess.com"]
[Date "2024.03.05"]
[Round "9"]
[White "AlexTruskavetsky"]
[Black "ATM622"]
[Result "1-0"]
[WhiteElo "2688"]
[BlackElo "2489"]
[TimeControl "180+1"]
[EndTime "15:39:18 PST"]
[Termination "AlexTruskavetsky won by resignation"]

1. d4 {[%clk 0:03:00.3]} 1... Nf6 {[%clk 0:02:57.1]} 2. c4 {[%clk 0:02:59.4]}
2... e6 {[%clk 0:02:57.1]} 3. Nc3 {[%clk 0:02:58.3]} 3... Bb4 {[%clk 0:02:55.1]}
4. e3 {[%clk 0:02:56.6]} 4... O-O {[%clk 0:02:54.4]} 5. a3 {[%clk 0:02:56.4]}
5... Bxc3+ {[%clk 0:02:54.2]} 6. bxc3 {[%clk 0:02:57.3]} 6... b6 {[%clk
0:02:53.1]} 7. Bd3 {[%clk 0:02:57.2]} 7... Bb7 {[%clk 0:02:52.2]} 8. f3 {[%clk
0:02:57.8]} 8... d5 {[%clk 0:02:51.7]} 9. cxd5 {[%clk 0:02:58.1]} 9... Nxd5
{[%clk 0:02:48]} 10. Ne2 {[%clk 0:02:57.9]} 10... c5 {[%clk 0:02:47.3]} 11. e4
{[%clk 0:02:58.1]} 11... Nf6 {[%clk 0:02:47]} 12. O-O {[%clk 0:02:58]} 12... Nc6
{[%clk 0:02:46.6]} 13. Be3 {[%clk 0:02:57.8]} 13... cxd4 {[%clk 0:02:43.9]} 14.
cxd4 {[%clk 0:02:58.2]} 14... Re8 {[%clk 0:02:44.1]} 15. Rc1 {[%clk 0:02:56.4]}
15... Qe7 {[%clk 0:02:40.5]} 16. Qb3 {[%clk 0:02:53.1]} 16... Rac8 {[%clk
0:02:35.9]} 17. Rfd1 {[%clk 0:02:50.1]} 17... Na5 {[%clk 0:02:25.3]} 18. Qb2
{[%clk 0:02:49]} 18... Nd7 {[%clk 0:02:12.5]} 19. Bb5 {[%clk 0:02:35.2]} 19...
Bc6 {[%clk 0:02:04.2]} 20. Ba6 {[%clk 0:02:29.8]} 20... Bb7 {[%clk 0:02:00.2]}
21. Bb5 {[%clk 0:02:28.8]} 21... Bc6 {[%clk 0:02:00]} 22. Bd3 {[%clk 0:02:25.1]}
22... Ba4 {[%clk 0:01:59.6]} 23. Re1 {[%clk 0:02:25.3]} 23... e5 {[%clk
0:01:54.5]} 24. Nc3 {[%clk 0:02:20.3]} 24... exd4 {[%clk 0:01:40.2]} 25. Bxd4
{[%clk 0:02:18.4]} 25... Bc6 {[%clk 0:01:37.6]} 26. Ba6 {[%clk 0:01:47.3]} 26...
Bb7 {[%clk 0:01:33.6]} 27. Bxb7 {[%clk 0:01:46.5]} 27... Nxb7 {[%clk 0:01:33.4]}
28. Nd5 {[%clk 0:01:47]} 28... Qf8 {[%clk 0:01:24.1]} 29. Rxc8 {[%clk
0:01:43.3]} 29... Rxc8 {[%clk 0:01:23.8]} 30. Bxg7 {[%clk 0:01:44.2]} 30... Qxg7
{[%clk 0:01:17.3]} 31. Ne7+ {[%clk 0:01:44.6]} 31... Kf8 {[%clk 0:01:17.9]} 32.
Qxg7+ {[%clk 0:01:45.5]} 32... Kxg7 {[%clk 0:01:17.6]} 33. Nxc8 {[%clk
0:01:46.1]} 33... a5 {[%clk 0:01:11.8]} 34. Rd1 {[%clk 0:01:45.6]} 34... Ndc5
{[%clk 0:01:09.3]} 35. Nxb6 {[%clk 0:01:45.4]} 35... Kf6 {[%clk 0:01:05.2]} 36.
Rd4 {[%clk 0:01:45.2]} 36... Ke5 {[%clk 0:01:04.9]} 37. Rd5+ {[%clk 0:01:44.7]}
37... Ke6 {[%clk 0:01:02.7]} 38. Nc4 {[%clk 0:01:45]} 38... a4 {[%clk 0:00:55]}
39. Nb2 {[%clk 0:01:45]} 39... f6 {[%clk 0:00:50.6]} 40. Rd4 {[%clk 0:01:44.7]}
40... Nb3 {[%clk 0:00:47]} 41. Rxa4 {[%clk 0:01:44.5]} 41... N7c5 {[%clk
0:00:47.1]} 42. Rb4 {[%clk 0:01:44.9]} 42... Kd6 {[%clk 0:00:44]} 43. Nd3 {[%clk
0:01:43.5]} 43... Nxd3 {[%clk 0:00:38.3]} 44. Rxb3 {[%clk 0:01:43.8]} 44... Nc5
{[%clk 0:00:38.6]} 45. Rb6+ {[%clk 0:01:43.6]} 45... Ke5 {[%clk 0:00:39.1]} 46.
Rb5 {[%clk 0:01:44]} 46... Kd4 {[%clk 0:00:39.2]} 47. Rxc5 {[%clk 0:01:44.6]}
47... Kxc5 {[%clk 0:00:39.1]} 48. Kf2 {[%clk 0:01:45.3]} 48... Kb5 {[%clk
0:00:39.5]} 49. Ke3 {[%clk 0:01:46.2]} 49... Ka4 {[%clk 0:00:40.3]} 50. Kd4
{[%clk 0:01:46.9]} 50... Kxa3 {[%clk 0:00:41.2]} 51. f4 {[%clk 0:01:47.8]} 51...
Kb4 {[%clk 0:00:42.1]} 52. e5 {[%clk 0:01:48.7]} 52... fxe5+ {[%clk 0:00:41.6]}
53. fxe5 {[%clk 0:01:49.6]} 53... Kb5 {[%clk 0:00:42]} 54. Kd5 {[%clk
0:01:50.2]} 54... Kb6 {[%clk 0:00:42.6]} 55. Kd6 {[%clk 0:01:51.1]} 55... Kb7
{[%clk 0:00:43.1]} 56. Kd7 {[%clk 0:01:50.9]} 56... Kb6 {[%clk 0:00:43.1]} 57.
e6 {[%clk 0:01:51.8]} 1-0

[Event "Late-Titled-Tuesday-Blitz-March-05-2024"]
[Site "Chess.com"]
[Date "2024.03.05"]
[Round "9"]
[White "Bkmzzzzz"]
[Black "Fjal"]
[Result "0-1"]
[WhiteElo "2399"]
[BlackElo "2305"]
[TimeControl "180+1"]
[EndTime "15:39:25 PST"]
[Termination "Fjal won by resignation"]

1. e4 {[%clk 0:03:00.9]} 1... d6 {[%clk 0:02:58.9]} 2. d4 {[%clk 0:02:59.5]}
2... Nf6 {[%clk 0:02:59.4]} 3. Nc3 {[%clk 0:02:58.6]} 3... g6 {[%clk 0:02:59.7]}
4. Nf3 {[%clk 0:02:52.8]} 4... Bg7 {[%clk 0:02:59.3]} 5. Be3 {[%clk 0:02:48.9]}
5... a6 {[%clk 0:02:56.7]} 6. a4 {[%clk 0:02:43.2]} 6... Nbd7 {[%clk 0:02:55]}
7. Bc4 {[%clk 0:02:41.7]} 7... e5 {[%clk 0:02:55.4]} 8. O-O {[%clk 0:02:37.4]}
8... O-O {[%clk 0:02:55.4]} 9. h3 {[%clk 0:02:35.2]} 9... Qe7 {[%clk 0:02:54.1]}
10. Re1 {[%clk 0:02:32.7]} 10... b6 {[%clk 0:02:52.7]} 11. Qd2 {[%clk
0:02:13.6]} 11... Bb7 {[%clk 0:02:52.2]} 12. d5 {[%clk 0:02:07.8]} 12... Nc5
{[%clk 0:02:47.4]} 13. Bh6 {[%clk 0:02:02.7]} 13... a5 {[%clk 0:02:45.9]} 14. b3
{[%clk 0:01:56.4]} 14... Ba6 {[%clk 0:02:42.3]} 15. Bxa6 {[%clk 0:01:51.8]}
15... Nxa6 {[%clk 0:02:40.4]} 16. Bxg7 {[%clk 0:01:47.3]} 16... Kxg7 {[%clk
0:02:41.3]} 17. Nh2 {[%clk 0:01:47.2]} 17... Rac8 {[%clk 0:02:37.6]} 18. Rad1
{[%clk 0:01:37]} 18... Nh5 {[%clk 0:02:34.7]} 19. Ng4 {[%clk 0:01:34.3]} 19...
Nf4 {[%clk 0:02:30.4]} 20. Ne2 {[%clk 0:00:47.2]} 20... Nxe2+ {[%clk 0:02:11.3]}
21. Rxe2 {[%clk 0:00:46.3]} 21... f5 {[%clk 0:02:09.7]} 22. Qh6+ {[%clk
0:00:45.4]} 22... Kh8 {[%clk 0:02:03.7]} 23. exf5 {[%clk 0:00:45.1]} 23... gxf5
{[%clk 0:02:03.8]} 24. Ne3 {[%clk 0:00:44.2]} 24... Rf6 {[%clk 0:01:57.8]} 25.
Qh4 {[%clk 0:00:40.5]} 25... Qg7 {[%clk 0:01:53.8]} 26. Kh2 {[%clk 0:00:34.5]}
26... Rg8 {[%clk 0:01:51.8]} 27. Rg1 {[%clk 0:00:31]} 27... Nc5 {[%clk
0:01:51.2]} 28. g4 {[%clk 0:00:25.2]} 28... Rh6 {[%clk 0:01:43.5]} 29. Nxf5
{[%clk 0:00:12.1]} 29... Rxh4 {[%clk 0:01:42.6]} 30. Nxg7 {[%clk 0:00:12.6]}
30... Rxg7 {[%clk 0:01:43.5]} 31. f4 {[%clk 0:00:12.8]} 31... exf4 {[%clk
0:01:37.9]} 32. Re8+ {[%clk 0:00:09.3]} 32... Rg8 {[%clk 0:01:37.3]} 33. Re7
{[%clk 0:00:10]} 33... h5 {[%clk 0:01:35.7]} 34. Rf1 {[%clk 0:00:05.5]} 34...
hxg4 {[%clk 0:01:34.8]} 35. Rxf4 {[%clk 0:00:04.8]} 35... g3+ {[%clk 0:01:35.2]}
0-1

[Event "Late-Titled-Tuesday-Blitz-March-05-2024"]
[Site "Chess.com"]
[Date "2024.03.05"]
[Round "9"]
[White "karinachess1"]
[Black "VinzentSpitzl"]
[Result "1-0"]
[WhiteElo "2599"]
[BlackElo "2547"]
[TimeControl "180+1"]
[EndTime "15:39:28 PST"]
[Termination "karinachess1 won by resignation"]

1. d4 {[%clk 0:03:00.9]} 1... d5 {[%clk 0:02:34.6]} 2. c4 {[%clk 0:03:00.7]}
2... e6 {[%clk 0:02:34.5]} 3. Nc3 {[%clk 0:03:00.8]} 3... Nf6 {[%clk 0:02:24.9]}
4. cxd5 {[%clk 0:03:00.5]} 4... exd5 {[%clk 0:02:24.5]} 5. Bg5 {[%clk
0:03:00.5]} 5... Be7 {[%clk 0:02:24.8]} 6. e3 {[%clk 0:03:00.8]} 6... h6 {[%clk
0:02:22.1]} 7. Bh4 {[%clk 0:03:00.8]} 7... O-O {[%clk 0:02:22.1]} 8. Bd3 {[%clk
0:03:00.8]} 8... Nbd7 {[%clk 0:02:21.7]} 9. Nf3 {[%clk 0:02:58.1]} 9... Re8
{[%clk 0:02:21.3]} 10. O-O {[%clk 0:02:57]} 10... c6 {[%clk 0:02:21.5]} 11. Qc2
{[%clk 0:02:54]} 11... Ne4 {[%clk 0:02:21.4]} 12. Bxe7 {[%clk 0:02:54.2]} 12...
Qxe7 {[%clk 0:02:21.2]} 13. a3 {[%clk 0:02:53.1]} 13... Nxc3 {[%clk 0:02:10.2]}
14. bxc3 {[%clk 0:02:52.9]} 14... Nf6 {[%clk 0:02:10.2]} 15. c4 {[%clk
0:02:53.2]} 15... Be6 {[%clk 0:02:05.3]} 16. Ne5 {[%clk 0:02:37.3]} 16... Nd7
{[%clk 0:01:58.2]} 17. f4 {[%clk 0:02:30.1]} 17... Nxe5 {[%clk 0:01:56.9]} 18.
fxe5 {[%clk 0:02:30.4]} 18... dxc4 {[%clk 0:01:51.6]} 19. Bxc4 {[%clk
0:02:30.5]} 19... Bxc4 {[%clk 0:01:51.8]} 20. Qxc4 {[%clk 0:02:31.4]} 20... Qe6
{[%clk 0:01:52.3]} 21. Qc3 {[%clk 0:02:21.5]} 21... Rac8 {[%clk 0:01:46.4]} 22.
Rab1 {[%clk 0:02:20.8]} 22... b6 {[%clk 0:01:40.3]} 23. Rf4 {[%clk 0:02:11.6]}
23... c5 {[%clk 0:01:37]} 24. Qd2 {[%clk 0:02:04.5]} 24... Rcd8 {[%clk
0:01:24.9]} 25. Qf2 {[%clk 0:01:59.4]} 25... cxd4 {[%clk 0:01:16.3]} 26. exd4
{[%clk 0:02:00.3]} 26... Rd7 {[%clk 0:01:16.5]} 27. Rc1 {[%clk 0:01:52.1]} 27...
Red8 {[%clk 0:01:15.4]} 28. h3 {[%clk 0:01:45.8]} 28... Qb3 {[%clk 0:01:09.2]}
29. Rf1 {[%clk 0:01:36.4]} 29... b5 {[%clk 0:00:51.7]} 30. Rg4 {[%clk
0:01:32.2]} 30... Qe6 {[%clk 0:00:48.9]} 31. Qg3 {[%clk 0:01:29.1]} 31... g6
{[%clk 0:00:40]} 32. Rf6 {[%clk 0:01:28.8]} 32... Qc4 {[%clk 0:00:33.5]} 33. e6
{[%clk 0:01:22.8]} 33... g5 {[%clk 0:00:18.2]} 34. exd7 {[%clk 0:01:19.4]} 1-0

[Event "Late-Titled-Tuesday-Blitz-March-05-2024"]
[Site "Chess.com"]
[Date "2024.03.05"]
[Round "9"]
[White "martinmena"]
[Black "traack"]
[Result "0-1"]
[WhiteElo "2308"]
[BlackElo "2436"]
[TimeControl "180+1"]
[EndTime "15:39:29 PST"]
[Termination "traack won by resignation"]

1. c4 {[%clk 0:01:07.1]} 1... Nf6 {[%clk 0:02:43]} 2. g3 {[%clk 0:01:07.3]} 2...
e6 {[%clk 0:02:43]} 3. Bg2 {[%clk 0:01:08]} 3... d5 {[%clk 0:02:43.2]} 4. Nf3
{[%clk 0:01:08.7]} 4... Be7 {[%clk 0:02:42.7]} 5. O-O {[%clk 0:01:09.3]} 5...
O-O {[%clk 0:02:42.6]} 6. d4 {[%clk 0:01:10]} 6... c6 {[%clk 0:02:40.5]} 7. b3
{[%clk 0:01:07.8]} 7... b6 {[%clk 0:02:40.4]} 8. Qc2 {[%clk 0:01:07.7]} 8...
Nbd7 {[%clk 0:02:40.4]} 9. Rd1 {[%clk 0:01:07.5]} 9... Bb7 {[%clk 0:02:40.1]}
10. Nc3 {[%clk 0:01:06.7]} 10... Rc8 {[%clk 0:02:40.1]} 11. Bb2 {[%clk
0:01:07.2]} 11... c5 {[%clk 0:02:40]} 12. e4 {[%clk 0:00:58.7]} 12... Nxe4
{[%clk 0:02:33.5]} 13. Nxe4 {[%clk 0:00:55.3]} 13... dxe4 {[%clk 0:02:33.7]} 14.
Ne5 {[%clk 0:00:53.1]} 14... Nxe5 {[%clk 0:02:20.2]} 15. dxe5 {[%clk 0:00:53.1]}
15... Qc7 {[%clk 0:02:20]} 16. Bxe4 {[%clk 0:00:53.1]} 16... Bxe4 {[%clk
0:02:19.3]} 17. Qxe4 {[%clk 0:00:54]} 17... Rfd8 {[%clk 0:02:19.2]} 18. Qe2
{[%clk 0:00:36]} 18... g6 {[%clk 0:02:18.4]} 19. f4 {[%clk 0:00:30.6]} 19... h5
{[%clk 0:02:15.7]} 20. h4 {[%clk 0:00:27.9]} 20... Qc6 {[%clk 0:02:13.5]} 21.
Kf2 {[%clk 0:00:16.8]} 21... Bf8 {[%clk 0:02:07.6]} 22. Qf3 {[%clk 0:00:16.4]}
22... Qc7 {[%clk 0:02:05.2]} 23. Qe4 {[%clk 0:00:13.7]} 23... a6 {[%clk
0:02:04.9]} 24. Ke3 {[%clk 0:00:12.9]} 24... b5 {[%clk 0:02:04.3]} 25. Rac1
{[%clk 0:00:09.4]} 25... Qa5 {[%clk 0:02:01.2]} 26. cxb5 {[%clk 0:00:07.9]}
26... axb5 {[%clk 0:01:59]} 27. Rd3 {[%clk 0:00:07.3]} 27... Qxa2 {[%clk
0:01:54.4]} 28. Bc3 {[%clk 0:00:05.3]} 28... Qxb3 {[%clk 0:01:52.7]} 29. Rcd1
{[%clk 0:00:02.4]} 29... Rxd3+ {[%clk 0:01:50.2]} 30. Rxd3 {[%clk 0:00:02.9]}
30... c4 {[%clk 0:01:42.3]} 31. Rd4 {[%clk 0:00:01.6]} 31... Qxc3+ {[%clk
0:01:40.4]} 32. Kf2 {[%clk 0:00:02.3]} 32... Qxd4+ {[%clk 0:01:38.1]} 33. Qxd4
{[%clk 0:00:02.2]} 33... Bc5 {[%clk 0:01:38.4]} 34. Ke3 {[%clk 0:00:02.4]} 34...
Bxd4+ {[%clk 0:01:38.3]} 35. Kxd4 {[%clk 0:00:03.3]} 35... c3 {[%clk 0:01:39.2]}
0-1

[Event "Late-Titled-Tuesday-Blitz-March-05-2024"]
[Site "Chess.com"]
[Date "2024.03.05"]
[Round "9"]
[White "Heydarli77"]
[Black "Fh2411"]
[Result "1-0"]
[WhiteElo "2434"]
[BlackElo "2639"]
[TimeControl "180+1"]
[EndTime "15:39:31 PST"]
[Termination "Heydarli77 won on time"]

1. d4 {[%clk 0:03:00.9]} 1... d5 {[%clk 0:02:59.1]} 2. c4 {[%clk 0:02:59.1]}
2... c6 {[%clk 0:02:59.4]} 3. cxd5 {[%clk 0:02:56.9]} 3... cxd5 {[%clk
0:03:00.3]} 4. Nc3 {[%clk 0:02:56.6]} 4... Nf6 {[%clk 0:03:00.5]} 5. Nf3 {[%clk
0:02:55.3]} 5... Nc6 {[%clk 0:03:00.6]} 6. Bf4 {[%clk 0:02:54.1]} 6... Bf5
{[%clk 0:03:01]} 7. e3 {[%clk 0:02:50.8]} 7... e6 {[%clk 0:03:00.9]} 8. Qb3
{[%clk 0:02:48.6]} 8... Bb4 {[%clk 0:02:56.4]} 9. Bb5 {[%clk 0:02:45.2]} 9...
O-O {[%clk 0:02:31.6]} 10. O-O {[%clk 0:02:37.4]} 10... Bxc3 {[%clk 0:02:25.6]}
11. Qxc3 {[%clk 0:02:33.5]} 11... Rc8 {[%clk 0:02:24.8]} 12. Qa3 {[%clk
0:02:27.8]} 12... Qb6 {[%clk 0:02:18.9]} 13. Be2 {[%clk 0:02:23.7]} 13... Ne4
{[%clk 0:01:48.7]} 14. Rfc1 {[%clk 0:02:18.8]} 14... h6 {[%clk 0:01:39.9]} 15.
Ne5 {[%clk 0:02:13.5]} 15... Nxe5 {[%clk 0:01:24.4]} 16. Bxe5 {[%clk 0:02:12.8]}
16... Rfe8 {[%clk 0:01:15.9]} 17. f3 {[%clk 0:02:10.6]} 17... Nf6 {[%clk
0:01:03.5]} 18. Bxf6 {[%clk 0:02:05.6]} 18... gxf6 {[%clk 0:01:04.4]} 19. Rc5
{[%clk 0:02:02.1]} 19... Rxc5 {[%clk 0:00:45.8]} 20. dxc5 {[%clk 0:02:01.8]}
20... Qc7 {[%clk 0:00:46.4]} 21. Qxa7 {[%clk 0:01:54.5]} 21... Qe5 {[%clk
0:00:46.3]} 22. Qa3 {[%clk 0:01:53.7]} 22... h5 {[%clk 0:00:31.4]} 23. Rc1
{[%clk 0:01:48.5]} 23... h4 {[%clk 0:00:30.8]} 24. Qc3 {[%clk 0:01:47.7]} 24...
Ra8 {[%clk 0:00:22.2]} 25. a3 {[%clk 0:01:45]} 25... Ra4 {[%clk 0:00:20.6]} 26.
b4 {[%clk 0:01:40.2]} 26... Qxc3 {[%clk 0:00:10.1]} 27. Rxc3 {[%clk 0:01:39.2]}
27... e5 {[%clk 0:00:10.7]} 28. Bb5 {[%clk 0:01:37.7]} 28... Ra7 {[%clk
0:00:10.3]} 29. a4 {[%clk 0:01:35.4]} 29... Kf8 {[%clk 0:00:08]} 30. a5 {[%clk
0:01:32.4]} 30... Be6 {[%clk 0:00:03.3]} 31. c6 {[%clk 0:01:30.1]} 31... bxc6
{[%clk 0:00:03.7]} 32. Bxc6 {[%clk 0:01:29.3]} 1-0

[Event "Late-Titled-Tuesday-Blitz-March-05-2024"]
[Site "Chess.com"]
[Date "2024.03.05"]
[Round "9"]
[White "Malev212"]
[Black "aceontheturn"]
[Result "1-0"]
[WhiteElo "2646"]
[BlackElo "2787"]
[TimeControl "180+1"]
[EndTime "15:39:33 PST"]
[Termination "Malev212 won by resignation"]

1. e4 {[%clk 0:03:00.9]} 1... e5 {[%clk 0:02:51.9]} 2. Nf3 {[%clk 0:02:59.1]}
2... Nc6 {[%clk 0:02:48.8]} 3. d4 {[%clk 0:02:58.9]} 3... exd4 {[%clk
0:02:48.7]} 4. Bc4 {[%clk 0:02:58.3]} 4... Nf6 {[%clk 0:02:48.5]} 5. e5 {[%clk
0:02:57.2]} 5... d5 {[%clk 0:02:48.9]} 6. Bb5 {[%clk 0:02:57]} 6... Nd7 {[%clk
0:02:49.5]} 7. O-O {[%clk 0:02:53.3]} 7... Be7 {[%clk 0:02:49.4]} 8. Bxc6 {[%clk
0:02:50.6]} 8... bxc6 {[%clk 0:02:49.3]} 9. Nxd4 {[%clk 0:02:50.5]} 9... Nxe5
{[%clk 0:02:47.7]} 10. Bf4 {[%clk 0:02:40.8]} 10... c5 {[%clk 0:02:44.5]} 11.
Bxe5 {[%clk 0:02:35.6]} 11... cxd4 {[%clk 0:02:43.6]} 12. Bxg7 {[%clk
0:02:33.9]} 12... Rg8 {[%clk 0:02:33.9]} 13. Be5 {[%clk 0:02:33.3]} 13... c5
{[%clk 0:02:30.4]} 14. Re1 {[%clk 0:02:24.7]} 14... Bg4 {[%clk 0:02:29.6]} 15.
Qd3 {[%clk 0:02:18]} 15... Qd7 {[%clk 0:02:19.8]} 16. Nd2 {[%clk 0:02:05.1]}
16... Bf5 {[%clk 0:02:10.6]} 17. Qa6 {[%clk 0:01:53.8]} 17... Rg6 {[%clk
0:02:09.3]} 18. Qa5 {[%clk 0:01:43.6]} 18... Bxc2 {[%clk 0:01:45.1]} 19. b4
{[%clk 0:01:28.1]} 19... c4 {[%clk 0:01:17.6]} 20. Bxd4 {[%clk 0:01:10.8]} 20...
Qg4 {[%clk 0:01:17.9]} 21. Rxe7+ {[%clk 0:01:06.2]} 21... Kxe7 {[%clk
0:01:18.8]} 22. Qc5+ {[%clk 0:01:03.5]} 22... Ke8 {[%clk 0:01:10.3]} 23. Re1+
{[%clk 0:00:59]} 23... Be4 {[%clk 0:01:08]} 24. g3 {[%clk 0:00:51.8]} 24... Rc8
{[%clk 0:01:01.3]} 25. Qxd5 {[%clk 0:00:45.3]} 25... f5 {[%clk 0:00:30]} 26.
Nxe4 {[%clk 0:00:42.6]} 1-0

[Event "Late-Titled-Tuesday-Blitz-March-05-2024"]
[Site "Chess.com"]
[Date "2024.03.05"]
[Round "9"]
[White "BabageldiAnnaberdiyev"]
[Black "venturov"]
[Result "0-1"]
[WhiteElo "2609"]
[BlackElo "2482"]
[TimeControl "180+1"]
[EndTime "15:39:35 PST"]
[Termination "venturov won by checkmate"]

1. e4 {[%clk 0:02:53.6]} 1... Nf6 {[%clk 0:02:59.7]} 2. d3 {[%clk 0:02:52.6]}
2... d5 {[%clk 0:02:59.5]} 3. Nd2 {[%clk 0:02:52.6]} 3... c5 {[%clk 0:02:59.3]}
4. Ngf3 {[%clk 0:02:52.5]} 4... Nc6 {[%clk 0:02:58.5]} 5. g3 {[%clk 0:02:52.7]}
5... e5 {[%clk 0:02:58]} 6. Bg2 {[%clk 0:02:52.7]} 6... g6 {[%clk 0:02:58.1]} 7.
O-O {[%clk 0:02:53.1]} 7... Bg7 {[%clk 0:02:58.3]} 8. Re1 {[%clk 0:02:53.3]}
8... O-O {[%clk 0:02:58.6]} 9. exd5 {[%clk 0:02:53.1]} 9... Nxd5 {[%clk
0:02:58.4]} 10. Nc4 {[%clk 0:02:53.8]} 10... Re8 {[%clk 0:02:58.7]} 11. a4
{[%clk 0:02:53.3]} 11... h6 {[%clk 0:02:58]} 12. c3 {[%clk 0:02:53.1]} 12... Nb6
{[%clk 0:02:29.7]} 13. Nxb6 {[%clk 0:02:10.3]} 13... axb6 {[%clk 0:02:30.6]} 14.
Qe2 {[%clk 0:02:07]} 14... Bf5 {[%clk 0:02:14.3]} 15. Rd1 {[%clk 0:02:07]} 15...
Qd7 {[%clk 0:02:13.9]} 16. Ne1 {[%clk 0:02:06.5]} 16... Rad8 {[%clk 0:02:09.4]}
17. Be3 {[%clk 0:02:05.2]} 17... Bg4 {[%clk 0:02:01.4]} 18. Bf3 {[%clk
0:02:03.7]} 18... Be6 {[%clk 0:01:58.9]} 19. Bg2 {[%clk 0:01:27.7]} 19... Kh7
{[%clk 0:01:57.7]} 20. b4 {[%clk 0:01:21.9]} 20... cxb4 {[%clk 0:01:50.6]} 21.
cxb4 {[%clk 0:01:21.7]} 21... Nxb4 {[%clk 0:01:49.9]} 22. Bxb6 {[%clk
0:01:21.1]} 22... Rc8 {[%clk 0:01:48.4]} 23. a5 {[%clk 0:01:21.4]} 23... f5
{[%clk 0:01:38.2]} 24. Rab1 {[%clk 0:01:20.7]} 24... Nd5 {[%clk 0:01:37.3]} 25.
Bxd5 {[%clk 0:01:16.8]} 25... Bxd5 {[%clk 0:01:37]} 26. Rdc1 {[%clk 0:01:13.5]}
26... Bc6 {[%clk 0:01:34.3]} 27. Qa2 {[%clk 0:01:11.1]} 27... e4 {[%clk
0:01:21.3]} 28. dxe4 {[%clk 0:01:05.1]} 28... Rxe4 {[%clk 0:01:21.2]} 29. Ng2
{[%clk 0:00:52.2]} 29... Rce8 {[%clk 0:01:18.2]} 30. Rd1 {[%clk 0:00:51.2]}
30... Qe7 {[%clk 0:01:13.4]} 31. Be3 {[%clk 0:00:43.8]} 31... Rxe3 {[%clk
0:00:49]} 32. Nxe3 {[%clk 0:00:44.7]} 32... Qe4 {[%clk 0:00:49]} 33. Qc4 {[%clk
0:00:32.8]} 33... Qh1# {[%clk 0:00:47.7]} 0-1

[Event "Late-Titled-Tuesday-Blitz-March-05-2024"]
[Site "Chess.com"]
[Date "2024.03.05"]
[Round "9"]
[White "KetiTsatsalashvili"]
[Black "lefonghua"]
[Result "1/2-1/2"]
[WhiteElo "2491"]
[BlackElo "2599"]
[TimeControl "180+1"]
[EndTime "15:39:43 PST"]
[Termination "Game drawn by repetition"]

1. d4 {[%clk 0:03:00.9]} 1... Nf6 {[%clk 0:03:00.1]} 2. Nf3 {[%clk 0:03:01]}
2... g6 {[%clk 0:03:00.3]} 3. c4 {[%clk 0:03:00.3]} 3... Bg7 {[%clk 0:03:00.4]}
4. Nc3 {[%clk 0:03:00.9]} 4... O-O {[%clk 0:03:00.9]} 5. e4 {[%clk 0:03:01.5]}
5... d6 {[%clk 0:03:01.4]} 6. Be2 {[%clk 0:03:01.8]} 6... Bg4 {[%clk 0:03:01.3]}
7. O-O {[%clk 0:02:58.6]} 7... Nfd7 {[%clk 0:03:01]} 8. Be3 {[%clk 0:02:55.1]}
8... c5 {[%clk 0:02:57.6]} 9. d5 {[%clk 0:02:54.7]} 9... Na6 {[%clk 0:02:56.3]}
10. Qd2 {[%clk 0:02:54.5]} 10... Nc7 {[%clk 0:02:55.7]} 11. Bh6 {[%clk
0:02:52.8]} 11... e6 {[%clk 0:02:49.2]} 12. Bxg7 {[%clk 0:02:49.3]} 12... Kxg7
{[%clk 0:02:49.3]} 13. h3 {[%clk 0:01:56.6]} 13... Bxf3 {[%clk 0:02:48.2]} 14.
Bxf3 {[%clk 0:01:57.5]} 14... exd5 {[%clk 0:02:46]} 15. exd5 {[%clk 0:01:54.5]}
15... Ne5 {[%clk 0:02:37.6]} 16. Be2 {[%clk 0:01:54.7]} 16... f5 {[%clk
0:02:34.1]} 17. f4 {[%clk 0:01:54.2]} 17... Nd7 {[%clk 0:02:31.1]} 18. Bf3
{[%clk 0:01:53.5]} 18... Nf6 {[%clk 0:02:28.7]} 19. Rfe1 {[%clk 0:01:53.4]}
19... Qd7 {[%clk 0:02:28.5]} 20. a4 {[%clk 0:01:50]} 20... Rfe8 {[%clk
0:02:23.7]} 21. Kf2 {[%clk 0:01:44.3]} 21... Rxe1 {[%clk 0:02:16.2]} 22. Rxe1
{[%clk 0:01:43.9]} 22... Re8 {[%clk 0:02:16.8]} 23. b3 {[%clk 0:01:39.6]} 23...
b6 {[%clk 0:02:14.3]} 24. Nb5 {[%clk 0:01:37.4]} 24... a6 {[%clk 0:02:08.7]} 25.
Nxc7 {[%clk 0:01:32.5]} 25... Qxc7 {[%clk 0:02:08.6]} 26. Rxe8 {[%clk 0:01:33]}
26... Nxe8 {[%clk 0:02:08.9]} 27. Qe3 {[%clk 0:01:32.8]} 27... Kf8 {[%clk
0:01:55.8]} 28. g4 {[%clk 0:01:30.9]} 28... fxg4 {[%clk 0:01:53.8]} 29. hxg4
{[%clk 0:01:31.3]} 29... Qe7 {[%clk 0:01:53.4]} 30. Qxe7+ {[%clk 0:01:17.2]}
30... Kxe7 {[%clk 0:01:54.3]} 31. g5 {[%clk 0:01:14.1]} 31... a5 {[%clk
0:01:36.4]} 32. Bg4 {[%clk 0:01:13.4]} 32... Kf7 {[%clk 0:01:32.9]} 33. f5
{[%clk 0:01:05.7]} 33... gxf5 {[%clk 0:01:29.5]} 34. Bxf5 {[%clk 0:01:06.6]}
34... Kg7 {[%clk 0:01:25.7]} 35. Kg3 {[%clk 0:00:57.8]} 35... h6 {[%clk
0:01:21.5]} 36. Kh4 {[%clk 0:00:51.2]} 36... hxg5+ {[%clk 0:01:17.7]} 37. Kxg5
{[%clk 0:00:52.1]} 37... Nf6 {[%clk 0:01:10.2]} 38. Bd3 {[%clk 0:00:47.5]} 38...
Kf7 {[%clk 0:01:06.4]} 39. Bf5 {[%clk 0:00:46.8]} 39... Ke7 {[%clk 0:01:04.4]}
40. Bd3 {[%clk 0:00:46.9]} 40... Nd7 {[%clk 0:01:01.9]} 41. Be4 {[%clk
0:00:42.9]} 41... Ne5 {[%clk 0:01:02.1]} 42. Kf5 {[%clk 0:00:42]} 42... Nf7
{[%clk 0:01:00.9]} 43. Bd3 {[%clk 0:00:40.2]} 43... Nh6+ {[%clk 0:00:59.8]} 44.
Kg5 {[%clk 0:00:39.7]} 44... Nf7+ {[%clk 0:00:58.8]} 45. Kf5 {[%clk 0:00:39.6]}
45... Nh6+ {[%clk 0:00:59.1]} 46. Kg5 {[%clk 0:00:39.7]} 46... Nf7+ {[%clk
0:00:59.6]} 47. Kf5 {[%clk 0:00:39.9]} 1/2-1/2